[Event "Titled Tuesday Blitz October 31 Late 2023"]
[White "Ibadov, Dashgyn"]
[Black "Sjugirov, Sanan"]
[WhiteFideId "24107514"]
[BlackFideId "4189302"]
[WhiteElo "2598"]
[BlackElo "2938"]
[Result "0-1"]
[Round "2"]
[TimeControl "180+1"]
[Date "2023.10.31"]
[WhiteClock "0:00:00"]
[BlackClock "0:00:04"]
[Board "17"]

1. e4 {[%clk 0:03:00]}  c6 {[%clk 0:02:55]} 2. d4 {[%clk 0:03:00]}  d5 {[%clk 0:02:54]} 3. exd5 {[%clk 0:03:01]}  cxd5 {[%clk 0:02:54]} 4. Bd3 {[%clk 0:03:01]}  Nc6 {[%clk 0:02:52]} 5. c3 {[%clk 0:03:02]}  Qc7 {[%clk 0:02:48]} 6. h3 {[%clk 0:03:00]}  e6 {[%clk 0:02:40]} 7. Nf3 {[%clk 0:02:59]}  Bd6 {[%clk 0:02:40]} 8. O-O {[%clk 0:02:58]}  Nge7 {[%clk 0:02:40]} 9. Re1 {[%clk 0:02:55]}  Bd7 {[%clk 0:02:25]} 10. Nbd2 {[%clk 0:02:53]}  f6 {[%clk 0:02:20]} 11. c4 {[%clk 0:02:49]}  O-O {[%clk 0:02:17]} 12. a3 {[%clk 0:02:32]}  Rad8 {[%clk 0:02:08]} 13. Qc2 {[%clk 0:02:27]}  h6 {[%clk 0:02:03]} 14. b4 {[%clk 0:02:10]}  Bf4 {[%clk 0:01:49]} 15. Nf1 {[%clk 0:01:51]}  Bxc1 {[%clk 0:01:36]} 16. Raxc1 {[%clk 0:01:52]}  Qf4 {[%clk 0:01:36]} 17. Qc3 {[%clk 0:01:42]}  dxc4 {[%clk 0:01:25]} 18. Bxc4 {[%clk 0:01:41]}  Nd5 {[%clk 0:01:25]} 19. Bxd5 {[%clk 0:01:26]}  exd5 {[%clk 0:01:26]} 20. b5 {[%clk 0:01:27]}  Nb8 {[%clk 0:01:26]} 21. Qb3 {[%clk 0:01:08]}  Bf5 {[%clk 0:01:22]} 22. Ne3 {[%clk 0:00:55]}  Be6 {[%clk 0:01:21]} 23. a4 {[%clk 0:00:46]}  Nd7 {[%clk 0:01:18]} 24. a5 {[%clk 0:00:43]}  Qd6 {[%clk 0:01:15]} 25. a6 {[%clk 0:00:40]}  Rb8 {[%clk 0:01:06]} 26. axb7 {[%clk 0:00:29]}  Rxb7 {[%clk 0:01:07]} 27. Nh4 {[%clk 0:00:29]}  Nb8 {[%clk 0:00:30]} 28. Nhf5 {[%clk 0:00:25]}  Qd7 {[%clk 0:00:30]} 29. Qd3 {[%clk 0:00:18]}  Rd8 {[%clk 0:00:18]} 30. Rc5 {[%clk 0:00:17]}  Qf7 {[%clk 0:00:16]} 31. Rec1 {[%clk 0:00:12]}  Rbd7 {[%clk 0:00:08]} 32. Rc8 {[%clk 0:00:10]}  Qe8 {[%clk 0:00:05]} 33. Rxd8 {[%clk 0:00:06]}  Qxd8 {[%clk 0:00:06]} 34. g4 {[%clk 0:00:02]}  Rb7 {[%clk 0:00:05]} 35. Kg2 {[%clk 0:00:02]}  Nd7 {[%clk 0:00:06]} 36. Rc6 {[%clk 0:00:01]}  Bf7 {[%clk 0:00:06]} 37. Rd6 {[%clk 0:00:02]}  Qe8 {[%clk 0:00:05]} 38. Rc6 {[%clk 0:00:02]}  Qb8 {[%clk 0:00:05]} 39. Nd6 {[%clk 0:00:03]}  Rc7 {[%clk 0:00:05]} 40. Nxf7 {[%clk 0:00:02]}  Kxf7 {[%clk 0:00:05]} 41. Qf5 {[%clk 0:00:00]}  Nb6 {[%clk 0:00:04]} 0-1


[Site "https://www.chess.com"]

[Event "Titled Tuesday Blitz October 31 Late 2023"]
[White "Mahdavi, Reza"]
[Black "Roberson, Peter T"]
[WhiteFideId "12595926"]
[BlackFideId "412384"]
[WhiteElo "2935"]
[BlackElo "2597"]
[Result "1-0"]
[Round "2"]
[TimeControl "180+1"]
[Date "2023.10.31"]
[WhiteClock "0:01:22"]
[BlackClock "0:00:00"]
[Board "18"]

1. c4 {[%clk 0:03:00]}  b6 {[%clk 0:02:55]} 2. Nf3 {[%clk 0:02:59]}  Bb7 {[%clk 0:02:56]} 3. d4 {[%clk 0:02:59]}  g6 {[%clk 0:02:54]} 4. Nc3 {[%clk 0:02:59]}  Nf6 {[%clk 0:02:54]} 5. g3 {[%clk 0:02:58]}  Ne4 {[%clk 0:02:51]} 6. d5 {[%clk 0:02:52]}  Nxc3 {[%clk 0:02:50]} 7. Qd4 {[%clk 0:02:50]}  f6 {[%clk 0:02:32]} 8. Qxc3 {[%clk 0:02:49]}  Bg7 {[%clk 0:02:33]} 9. h4 {[%clk 0:02:49]}  O-O {[%clk 0:02:34]} 10. h5 {[%clk 0:02:49]}  f5 {[%clk 0:02:34]} 11. Qc2 {[%clk 0:02:46]}  e6 {[%clk 0:02:34]} 12. hxg6 {[%clk 0:02:47]}  hxg6 {[%clk 0:02:35]} 13. Bg5 {[%clk 0:02:46]}  Qe8 {[%clk 0:02:32]} 14. Rd1 {[%clk 0:02:45]}  exd5 {[%clk 0:02:31]} 15. cxd5 {[%clk 0:02:46]}  Na6 {[%clk 0:02:31]} 16. Qc4 {[%clk 0:02:46]}  d6 {[%clk 0:02:28]} 17. Qh4 {[%clk 0:02:46]}  Kf7 {[%clk 0:01:50]} 18. Bh6 {[%clk 0:02:32]}  Rh8 {[%clk 0:01:45]} 19. Qf4 {[%clk 0:02:32]}  Bxb2 {[%clk 0:01:20]} 20. Bh3 {[%clk 0:02:25]}  Be5 {[%clk 0:01:00]} 21. Qc1 {[%clk 0:02:14]}  Nc5 {[%clk 0:00:53]} 22. Kf1 {[%clk 0:02:10]}  Ba6 {[%clk 0:00:39]} 23. Re1 {[%clk 0:02:03]}  Bf6 {[%clk 0:00:35]} 24. Be3 {[%clk 0:02:01]}  Qe4 {[%clk 0:00:30]} 25. Bg2 {[%clk 0:01:56]}  Rxh1+ {[%clk 0:00:29]} 26. Bxh1 {[%clk 0:01:57]}  Qc4 {[%clk 0:00:14]} 27. Qa3 {[%clk 0:01:57]}  Rh8 {[%clk 0:00:12]} 28. Kg1 {[%clk 0:01:55]}  Bb7 {[%clk 0:00:09]} 29. Qxa7 {[%clk 0:01:54]}  Qxd5 {[%clk 0:00:10]} 30. Ng5+ {[%clk 0:01:42]}  Bxg5 {[%clk 0:00:03]} 31. Bxd5+ {[%clk 0:01:42]}  Bxd5 {[%clk 0:00:03]} 32. Qxc7+ {[%clk 0:01:43]}  Ke6 {[%clk 0:00:04]} 33. f4 {[%clk 0:01:37]}  Rh1+ {[%clk 0:00:04]} 34. Kf2 {[%clk 0:01:37]}  Rh2+ {[%clk 0:00:03]} 35. Kf1 {[%clk 0:01:37]}  Rh1+ {[%clk 0:00:01]} 36. Bg1 {[%clk 0:01:38]}  Bf6 {[%clk 0:00:02]} 37. Qc8+ {[%clk 0:01:33]}  Ke7 {[%clk 0:00:02]} 38. Qc7+ {[%clk 0:01:31]}  Ke6 {[%clk 0:00:02]} 39. e4 {[%clk 0:01:30]}  Nxe4 {[%clk 0:00:02]} 40. Kg2 {[%clk 0:01:26]}  Rh5 {[%clk 0:00:01]} 41. Bxb6 {[%clk 0:01:26]}  Be7 {[%clk 0:00:01]} 42. Bd4 {[%clk 0:01:23]}  Kf7 {[%clk 0:00:02]} 43. Kg1 {[%clk 0:01:22]}  Nc5 {[%clk 0:00:00]} 44. Qxe7+ {[%clk 0:01:22]} 1-0


[Site "https://www.chess.com"]

[Event "Titled Tuesday Blitz October 31 Late 2023"]
[White "Bauman_Guy"]
[Black "Tifferet, Shaked"]
[BlackFideId "2811529"]
[WhiteElo "2919"]
[BlackElo "2595"]
[Result "1-0"]
[Round "2"]
[TimeControl "180+1"]
[Date "2023.10.31"]
[WhiteClock "0:00:09"]
[BlackClock "0:00:00"]
[Board "19"]

1. e4 {[%clk 0:03:00]}  e6 {[%clk 0:02:57]} 2. d4 {[%clk 0:03:00]}  d5 {[%clk 0:02:58]} 3. Nc3 {[%clk 0:03:01]}  a6 {[%clk 0:02:57]} 4. exd5 {[%clk 0:02:57]}  exd5 {[%clk 0:02:57]} 5. Bd3 {[%clk 0:02:57]}  Be7 {[%clk 0:02:55]} 6. Nge2 {[%clk 0:02:56]}  Nf6 {[%clk 0:02:55]} 7. O-O {[%clk 0:02:56]}  O-O {[%clk 0:02:56]} 8. Bf4 {[%clk 0:02:56]}  c6 {[%clk 0:02:55]} 9. Qd2 {[%clk 0:02:55]}  Bg4 {[%clk 0:02:55]} 10. f3 {[%clk 0:02:55]}  Bh5 {[%clk 0:02:55]} 11. Ng3 {[%clk 0:02:55]}  Bg6 {[%clk 0:02:55]} 12. Nf5 {[%clk 0:02:55]}  Bxf5 {[%clk 0:02:46]} 13. Bxf5 {[%clk 0:02:56]}  Nbd7 {[%clk 0:02:43]} 14. Rfe1 {[%clk 0:02:54]}  Re8 {[%clk 0:02:42]} 15. a3 {[%clk 0:02:46]}  Nb6 {[%clk 0:02:40]} 16. b3 {[%clk 0:02:44]}  Nc8 {[%clk 0:02:29]} 17. Ne2 {[%clk 0:02:28]}  Nd6 {[%clk 0:02:26]} 18. Bd3 {[%clk 0:02:28]}  Bf8 {[%clk 0:02:12]} 19. Ng3 {[%clk 0:02:23]}  Qd7 {[%clk 0:02:08]} 20. a4 {[%clk 0:02:22]}  Rxe1+ {[%clk 0:02:07]} 21. Rxe1 {[%clk 0:02:20]}  Re8 {[%clk 0:02:08]} 22. Be5 {[%clk 0:02:20]}  Re6 {[%clk 0:01:59]} 23. Nf5 {[%clk 0:02:15]}  g6 {[%clk 0:01:52]} 24. Nh6+ {[%clk 0:02:03]}  Bxh6 {[%clk 0:01:42]} 25. Qxh6 {[%clk 0:02:03]}  Nde8 {[%clk 0:01:37]} 26. Kf2 {[%clk 0:01:57]}  Qe7 {[%clk 0:01:34]} 27. Qd2 {[%clk 0:01:42]}  Nd7 {[%clk 0:01:29]} 28. Bg3 {[%clk 0:01:40]}  Rxe1 {[%clk 0:01:29]} 29. Qxe1 {[%clk 0:01:41]}  Qxe1+ {[%clk 0:01:29]} 30. Kxe1 {[%clk 0:01:42]}  Nf8 {[%clk 0:01:21]} 31. Kd2 {[%clk 0:01:35]}  Ne6 {[%clk 0:01:21]} 32. Kc3 {[%clk 0:01:35]}  Kf8 {[%clk 0:01:20]} 33. b4 {[%clk 0:01:29]}  Ke7 {[%clk 0:01:18]} 34. b5 {[%clk 0:01:28]}  a5 {[%clk 0:01:11]} 35. bxc6 {[%clk 0:01:19]}  bxc6 {[%clk 0:01:12]} 36. Bf2 {[%clk 0:01:19]}  Nd6 {[%clk 0:01:10]} 37. Kb3 {[%clk 0:01:14]}  Kd7 {[%clk 0:01:09]} 38. Bf1 {[%clk 0:00:58]}  Kc8 {[%clk 0:01:04]} 39. c3 {[%clk 0:00:53]}  Kb7 {[%clk 0:01:04]} 40. Bg3 {[%clk 0:00:50]}  Nf5 {[%clk 0:01:02]} 41. Bf2 {[%clk 0:00:48]}  Nd6 {[%clk 0:01:00]} 42. g4 {[%clk 0:00:48]}  Ng5 {[%clk 0:00:57]} 43. Bg2 {[%clk 0:00:46]}  Ne6 {[%clk 0:00:56]} 44. Bf1 {[%clk 0:00:42]}  Ng5 {[%clk 0:00:53]} 45. Be2 {[%clk 0:00:43]}  Ne6 {[%clk 0:00:53]} 46. Bg3 {[%clk 0:00:41]}  Nc8 {[%clk 0:00:50]} 47. h4 {[%clk 0:00:38]}  Nb6 {[%clk 0:00:48]} 48. Bd6 {[%clk 0:00:35]}  Nc8 {[%clk 0:00:46]} 49. Ba3 {[%clk 0:00:33]}  Nb6 {[%clk 0:00:45]} 50. Bc1 {[%clk 0:00:30]}  Nd7 {[%clk 0:00:44]} 51. Be3 {[%clk 0:00:26]}  Nb6 {[%clk 0:00:43]} 52. c4 {[%clk 0:00:25]}  dxc4+ {[%clk 0:00:41]} 53. Bxc4 {[%clk 0:00:26]}  Nxc4 {[%clk 0:00:41]} 54. Kxc4 {[%clk 0:00:27]}  Nc7 {[%clk 0:00:36]} 55. Kc5 {[%clk 0:00:25]}  Nd5 {[%clk 0:00:35]} 56. Bd2 {[%clk 0:00:25]}  Nb6 {[%clk 0:00:32]} 57. Bxa5 {[%clk 0:00:22]}  Nxa4+ {[%clk 0:00:27]} 58. Kd6 {[%clk 0:00:22]}  Nb2 {[%clk 0:00:24]} 59. Ke7 {[%clk 0:00:21]}  Nc4 {[%clk 0:00:20]} 60. Bc3 {[%clk 0:00:17]}  f5 {[%clk 0:00:18]} 61. gxf5 {[%clk 0:00:16]}  gxf5 {[%clk 0:00:19]} 62. Kf6 {[%clk 0:00:16]}  Ne3 {[%clk 0:00:17]} 63. Bd2 {[%clk 0:00:13]}  Nc4 {[%clk 0:00:12]} 64. Bf4 {[%clk 0:00:12]}  Kc8 {[%clk 0:00:08]} 65. Kg7 {[%clk 0:00:11]}  Kd7 {[%clk 0:00:07]} 66. Kxh7 {[%clk 0:00:11]}  Nb6 {[%clk 0:00:07]} 67. Kg6 {[%clk 0:00:10]}  Ke6 {[%clk 0:00:06]} 68. h5 {[%clk 0:00:10]}  Nd5 {[%clk 0:00:07]} 69. Bg5 {[%clk 0:00:11]}  Nc7 {[%clk 0:00:02]} 70. h6 {[%clk 0:00:10]}  Kd5 {[%clk 0:00:02]} 71. h7 {[%clk 0:00:10]}  Ne6 {[%clk 0:00:02]} 72. h8=Q {[%clk 0:00:10]}  Nxd4 {[%clk 0:00:02]} 73. Bf4 {[%clk 0:00:09]}  Nxf3 {[%clk 0:00:02]} 74. Kxf5 {[%clk 0:00:09]}  Nd4+ {[%clk 0:00:01]} 75. Kg4 {[%clk 0:00:10]}  c5 {[%clk 0:00:02]} 76. Qe5+ {[%clk 0:00:10]}  Kc4 {[%clk 0:00:02]} 77. Be3 {[%clk 0:00:10]}  Nb3 {[%clk 0:00:02]} 78. Kf3 {[%clk 0:00:10]}  Kb5 {[%clk 0:00:02]} 79. Ke4 {[%clk 0:00:09]}  Kc4 {[%clk 0:00:02]} 80. Qd5+ {[%clk 0:00:09]}  Kb4 {[%clk 0:00:00]} 81. Kd3 {[%clk 0:00:09]} 1-0


[Site "https://www.chess.com"]

[Event "Titled Tuesday Blitz October 31 Late 2023"]
[White "StiffMaster1"]
[Black "Harsha Bharathakoti"]
[BlackFideId "5078776"]
[WhiteElo "2588"]
[BlackElo "2910"]
[Result "0-1"]
[Round "2"]
[TimeControl "180+1"]
[Date "2023.10.31"]
[WhiteClock "0:00:00"]
[BlackClock "0:00:08"]
[Board "21"]

1. e4 {[%clk 0:02:55]}  g6 {[%clk 0:02:57]} 2. d4 {[%clk 0:02:55]}  Bg7 {[%clk 0:02:57]} 3. Nf3 {[%clk 0:02:55]}  d6 {[%clk 0:02:58]} 4. Nc3 {[%clk 0:02:56]}  a6 {[%clk 0:02:55]} 5. h3 {[%clk 0:02:56]}  b5 {[%clk 0:02:55]} 6. a3 {[%clk 0:02:57]}  Bb7 {[%clk 0:02:54]} 7. Bg5 {[%clk 0:02:57]}  Nd7 {[%clk 0:02:52]} 8. Qe2 {[%clk 0:02:57]}  c5 {[%clk 0:02:52]} 9. O-O-O {[%clk 0:02:56]}  cxd4 {[%clk 0:02:47]} 10. Nxd4 {[%clk 0:02:56]}  Rc8 {[%clk 0:02:47]} 11. Nd5 {[%clk 0:02:53]}  Ngf6 {[%clk 0:02:22]} 12. Nxf6+ {[%clk 0:02:49]}  Nxf6 {[%clk 0:02:23]} 13. e5 {[%clk 0:02:48]}  Ne4 {[%clk 0:02:23]} 14. Bf4 {[%clk 0:02:19]}  O-O {[%clk 0:02:10]} 15. e6 {[%clk 0:02:16]}  f5 {[%clk 0:02:07]} 16. f3 {[%clk 0:02:11]}  Nc5 {[%clk 0:01:52]} 17. Kb1 {[%clk 0:02:11]}  Qb6 {[%clk 0:01:50]} 18. Bg5 {[%clk 0:02:08]}  b4 {[%clk 0:01:40]} 19. axb4 {[%clk 0:02:02]}  Na4 {[%clk 0:01:40]} 20. Qd2 {[%clk 0:01:47]}  Rc7 {[%clk 0:01:34]} 21. Be3 {[%clk 0:01:38]}  a5 {[%clk 0:01:16]} 22. Nxf5 {[%clk 0:01:25]}  Qxb4 {[%clk 0:01:13]} 23. Qxb4 {[%clk 0:01:26]}  axb4 {[%clk 0:01:14]} 24. Nxg7 {[%clk 0:01:26]}  Kxg7 {[%clk 0:01:13]} 25. Bd4+ {[%clk 0:01:19]}  Kg8 {[%clk 0:01:12]} 26. h4 {[%clk 0:01:18]}  Ra8 {[%clk 0:01:08]} 27. h5 {[%clk 0:01:16]}  g5 {[%clk 0:01:09]} 28. h6 {[%clk 0:01:14]}  Nc5 {[%clk 0:00:51]} 29. Bc4 {[%clk 0:00:58]}  Bc8 {[%clk 0:00:27]} 30. Rh5 {[%clk 0:00:51]}  Bxe6 {[%clk 0:00:27]} 31. Rxg5+ {[%clk 0:00:51]}  Kf8 {[%clk 0:00:28]} 32. Rxc5 {[%clk 0:00:37]}  dxc5 {[%clk 0:00:28]} 33. Be5 {[%clk 0:00:28]}  Rca7 {[%clk 0:00:26]} 34. Bg7+ {[%clk 0:00:23]}  Kf7 {[%clk 0:00:26]} 35. Bxe6+ {[%clk 0:00:23]}  Kxe6 {[%clk 0:00:27]} 36. b3 {[%clk 0:00:24]}  Rd7 {[%clk 0:00:26]} 37. Re1+ {[%clk 0:00:24]}  Kf7 {[%clk 0:00:27]} 38. Kc1 {[%clk 0:00:20]}  Rd5 {[%clk 0:00:26]} 39. g4 {[%clk 0:00:19]}  e6 {[%clk 0:00:22]} 40. f4 {[%clk 0:00:19]}  Rad8 {[%clk 0:00:17]} 41. g5 {[%clk 0:00:18]}  Rc8 {[%clk 0:00:17]} 42. Be5 {[%clk 0:00:17]}  c4 {[%clk 0:00:17]} 43. bxc4 {[%clk 0:00:16]}  Rxc4 {[%clk 0:00:18]} 44. Kb2 {[%clk 0:00:17]}  Rd2 {[%clk 0:00:15]} 45. Rc1 {[%clk 0:00:16]}  Kg6 {[%clk 0:00:15]} 46. Kb3 {[%clk 0:00:16]}  Rc6 {[%clk 0:00:14]} 47. Kxb4 {[%clk 0:00:15]}  Rdxc2 {[%clk 0:00:15]} 48. Rxc2 {[%clk 0:00:11]}  Rxc2 {[%clk 0:00:16]} 49. Kb3 {[%clk 0:00:11]}  Rc6 {[%clk 0:00:15]} 50. Kb4 {[%clk 0:00:11]}  Rc8 {[%clk 0:00:15]} 51. Kb5 {[%clk 0:00:11]}  Kf5 {[%clk 0:00:15]} 52. Kb6 {[%clk 0:00:11]}  Rc2 {[%clk 0:00:15]} 53. Kb5 {[%clk 0:00:11]}  Rc8 {[%clk 0:00:13]} 54. Kb6 {[%clk 0:00:11]}  Rc1 {[%clk 0:00:13]} 55. Kb5 {[%clk 0:00:11]}  Re1 {[%clk 0:00:10]} 56. Kc6 {[%clk 0:00:09]}  Rd1 {[%clk 0:00:04]} 57. Kc7 {[%clk 0:00:07]}  Rd5 {[%clk 0:00:04]} 58. Kc6 {[%clk 0:00:07]}  Kg6 {[%clk 0:00:05]} 59. Kc7 {[%clk 0:00:06]}  Kf7 {[%clk 0:00:04]} 60. Kc6 {[%clk 0:00:05]}  Kg6 {[%clk 0:00:04]} 61. Kc7 {[%clk 0:00:04]}  Rd1 {[%clk 0:00:02]} 62. Kc6 {[%clk 0:00:05]}  Kf5 {[%clk 0:00:01]} 63. Bd6 {[%clk 0:00:04]}  Rd2 {[%clk 0:00:01]} 64. Kd7 {[%clk 0:00:04]}  Rd3 {[%clk 0:00:01]} 65. Ke7 {[%clk 0:00:04]}  Rd5 {[%clk 0:00:01]} 66. Be5 {[%clk 0:00:02]}  Rb5 {[%clk 0:00:02]} 67. Kf7 {[%clk 0:00:02]}  Rb7+ {[%clk 0:00:03]} 68. Kg8 {[%clk 0:00:02]}  Kg6 {[%clk 0:00:03]} 69. Kf8 {[%clk 0:00:03]}  Ra7 {[%clk 0:00:03]} 70. Ke8 {[%clk 0:00:03]}  Rb7 {[%clk 0:00:04]} 71. Kf8 {[%clk 0:00:03]}  Kf5 {[%clk 0:00:04]} 72. Kg8 {[%clk 0:00:02]}  Rd7 {[%clk 0:00:05]} 73. Bg7 {[%clk 0:00:01]}  Kg6 {[%clk 0:00:03]} 74. Kf8 {[%clk 0:00:01]}  Rf7+ {[%clk 0:00:03]} 75. Kg8 {[%clk 0:00:01]}  Rxf4 {[%clk 0:00:04]} 76. Bf6 {[%clk 0:00:01]}  Rf5 {[%clk 0:00:04]} 77. Kf8 {[%clk 0:00:01]}  e5 {[%clk 0:00:05]} 78. Ke7 {[%clk 0:00:01]}  e4 {[%clk 0:00:06]} 79. Ke6 {[%clk 0:00:02]}  e3 {[%clk 0:00:07]} 80. Be7 {[%clk 0:00:00]}  e2 {[%clk 0:00:08]} 0-1


[Site "https://www.chess.com"]

[Event "Titled Tuesday Blitz October 31 Late 2023"]
[White "Grigoriants, Sergey"]
[Black "Filipets, Egor"]
[WhiteFideId "4130804"]
[BlackFideId "13503928"]
[WhiteElo "2898"]
[BlackElo "2586"]
[Result "1/2-1/2"]
[Round "2"]
[TimeControl "180+1"]
[Date "2023.10.31"]
[WhiteClock "0:00:06"]
[BlackClock "0:00:35"]
[Board "22"]

1. d4 {[%clk 0:03:00]}  f5 {[%clk 0:02:59]} 2. Bg5 {[%clk 0:02:57]}  g6 {[%clk 0:02:59]} 3. e3 {[%clk 0:02:56]}  Nh6 {[%clk 0:02:59]} 4. Bc4 {[%clk 0:02:53]}  Nf7 {[%clk 0:02:58]} 5. Bh4 {[%clk 0:02:52]}  Bg7 {[%clk 0:02:54]} 6. Nf3 {[%clk 0:02:51]}  O-O {[%clk 0:02:49]} 7. Bb3 {[%clk 0:02:49]}  Kh8 {[%clk 0:02:46]} 8. Nc3 {[%clk 0:02:45]}  Nc6 {[%clk 0:02:32]} 9. Qd2 {[%clk 0:02:34]}  Na5 {[%clk 0:01:52]} 10. Nd5 {[%clk 0:02:21]}  Nxb3 {[%clk 0:01:47]} 11. axb3 {[%clk 0:02:21]}  Re8 {[%clk 0:01:47]} 12. O-O {[%clk 0:01:34]}  c6 {[%clk 0:01:46]} 13. Nf4 {[%clk 0:01:32]}  d5 {[%clk 0:01:36]} 14. Nd3 {[%clk 0:01:28]}  h6 {[%clk 0:01:23]} 15. c4 {[%clk 0:01:24]}  Be6 {[%clk 0:01:19]} 16. Nf4 {[%clk 0:01:23]}  Qd7 {[%clk 0:01:12]} 17. Nxg6+ {[%clk 0:01:07]}  Kh7 {[%clk 0:01:12]} 18. Nf4 {[%clk 0:01:03]}  dxc4 {[%clk 0:01:13]} 19. Nxe6 {[%clk 0:00:50]}  Qxe6 {[%clk 0:01:13]} 20. bxc4 {[%clk 0:00:50]}  Qxc4 {[%clk 0:01:13]} 21. Rfc1 {[%clk 0:00:47]}  Qe6 {[%clk 0:01:08]} 22. Bg3 {[%clk 0:00:46]}  a6 {[%clk 0:01:06]} 23. Qb4 {[%clk 0:00:38]}  Qd7 {[%clk 0:01:02]} 24. Ra5 {[%clk 0:00:38]}  e6 {[%clk 0:01:02]} 25. h3 {[%clk 0:00:37]}  Rac8 {[%clk 0:00:57]} 26. Qb3 {[%clk 0:00:34]}  Ng5 {[%clk 0:00:55]} 27. Ne5 {[%clk 0:00:32]}  Bxe5 {[%clk 0:00:54]} 28. Bxe5 {[%clk 0:00:33]}  Ne4 {[%clk 0:00:54]} 29. f3 {[%clk 0:00:31]}  Nd6 {[%clk 0:00:54]} 30. Qd3 {[%clk 0:00:29]}  Rg8 {[%clk 0:00:52]} 31. Kh1 {[%clk 0:00:24]}  Nf7 {[%clk 0:00:51]} 32. Bf4 {[%clk 0:00:23]}  Rce8 {[%clk 0:00:39]} 33. e4 {[%clk 0:00:23]}  e5 {[%clk 0:00:39]} 34. Be3 {[%clk 0:00:14]}  exd4 {[%clk 0:00:38]} 35. Bxd4 {[%clk 0:00:11]}  fxe4 {[%clk 0:00:38]} 36. fxe4 {[%clk 0:00:12]}  Ne5 {[%clk 0:00:39]} 37. Qc3 {[%clk 0:00:10]}  Ng6 {[%clk 0:00:39]} 38. Be3 {[%clk 0:00:05]}  Rxe4 {[%clk 0:00:37]} 39. Rh5 {[%clk 0:00:05]}  Nf4 {[%clk 0:00:34]} 40. Bxf4 {[%clk 0:00:05]}  Rxf4 {[%clk 0:00:35]} 41. Re1 {[%clk 0:00:04]}  Qg7 {[%clk 0:00:32]} 42. Qc2+ {[%clk 0:00:04]}  Qg6 {[%clk 0:00:31]} 43. Qxg6+ {[%clk 0:00:03]}  Kxg6 {[%clk 0:00:31]} 44. Rhe5 {[%clk 0:00:04]}  Rgf8 {[%clk 0:00:30]} 45. Re6+ {[%clk 0:00:04]}  R8f6 {[%clk 0:00:31]} 46. Re7 {[%clk 0:00:04]}  Rf1+ {[%clk 0:00:30]} 47. Rxf1 {[%clk 0:00:04]}  Rxf1+ {[%clk 0:00:31]} 48. Kh2 {[%clk 0:00:05]}  Rf7 {[%clk 0:00:32]} 49. Re8 {[%clk 0:00:04]}  Rc7 {[%clk 0:00:31]} 50. g4 {[%clk 0:00:04]}  c5 {[%clk 0:00:32]} 51. Kg3 {[%clk 0:00:05]}  c4 {[%clk 0:00:32]} 52. Kf4 {[%clk 0:00:05]}  b5 {[%clk 0:00:33]} 53. Re6+ {[%clk 0:00:04]}  Kg7 {[%clk 0:00:32]} 54. Rxa6 {[%clk 0:00:05]}  b4 {[%clk 0:00:33]} 55. Ra1 {[%clk 0:00:05]}  c3 {[%clk 0:00:33]} 56. bxc3 {[%clk 0:00:06]}  Rxc3 {[%clk 0:00:34]} 57. h4 {[%clk 0:00:05]}  Kf6 {[%clk 0:00:34]} 58. Ra6+ {[%clk 0:00:05]}  Kg7 {[%clk 0:00:34]} 59. Ra7+ {[%clk 0:00:05]}  Kf6 {[%clk 0:00:34]} 60. Ra6+ {[%clk 0:00:06]}  Kg7 {[%clk 0:00:35]} 61. Ra7+ {[%clk 0:00:06]}  Kg6 {[%clk 0:00:35]} 62. Ra6+ {[%clk 0:00:06]}  Kg7 {[%clk 0:00:35]} 1/2-1/2


[Site "https://www.chess.com"]

[Event "Titled Tuesday Blitz October 31 Late 2023"]
[White "Ezat, Mohamed"]
[Black "Kravtsiv, Martyn"]
[WhiteFideId "10600906"]
[BlackFideId "14113147"]
[WhiteElo "2584"]
[BlackElo "2888"]
[Result "0-1"]
[Round "2"]
[TimeControl "180+1"]
[Date "2023.10.31"]
[WhiteClock "0:00:00"]
[BlackClock "0:00:33"]
[Board "25"]

1. d4 {[%clk 0:01:00]}  Nf6 {[%clk 0:02:57]} 2. c4 {[%clk 0:01:00]}  e6 {[%clk 0:02:57]} 3. Nc3 {[%clk 0:01:00]}  d5 {[%clk 0:02:57]} 4. cxd5 {[%clk 0:00:59]}  exd5 {[%clk 0:02:58]} 5. Bg5 {[%clk 0:00:59]}  c6 {[%clk 0:02:58]} 6. Qc2 {[%clk 0:00:59]}  h6 {[%clk 0:02:57]} 7. Bf4 {[%clk 0:00:58]}  Bd6 {[%clk 0:02:52]} 8. Bxd6 {[%clk 0:00:58]}  Qxd6 {[%clk 0:02:53]} 9. e3 {[%clk 0:00:58]}  O-O {[%clk 0:02:52]} 10. Bd3 {[%clk 0:00:58]}  a5 {[%clk 0:02:47]} 11. Nge2 {[%clk 0:00:57]}  Na6 {[%clk 0:02:48]} 12. a3 {[%clk 0:00:56]}  b5 {[%clk 0:02:42]} 13. O-O {[%clk 0:00:55]}  Bd7 {[%clk 0:02:42]} 14. Ng3 {[%clk 0:00:52]}  Rfe8 {[%clk 0:02:31]} 15. Rac1 {[%clk 0:00:50]}  h5 {[%clk 0:02:22]} 16. h3 {[%clk 0:00:49]}  h4 {[%clk 0:02:20]} 17. Nge2 {[%clk 0:00:49]}  Nc7 {[%clk 0:02:09]} 18. Bf5 {[%clk 0:00:48]}  Rac8 {[%clk 0:01:57]} 19. Bxd7 {[%clk 0:00:48]}  Qxd7 {[%clk 0:01:58]} 20. Nb1 {[%clk 0:00:48]}  Ne6 {[%clk 0:01:57]} 21. Nd2 {[%clk 0:00:48]}  Ng5 {[%clk 0:01:56]} 22. Nb3 {[%clk 0:00:47]}  Nxh3+ {[%clk 0:01:27]} 23. gxh3 {[%clk 0:00:44]}  Qxh3 {[%clk 0:01:28]} 24. Nf4 {[%clk 0:00:31]}  Qg4+ {[%clk 0:01:16]} 25. Kh2 {[%clk 0:00:31]}  Qf3 {[%clk 0:01:16]} 26. Qd1 {[%clk 0:00:29]}  Rxe3 {[%clk 0:01:07]} 27. Qxf3 {[%clk 0:00:24]}  Rxf3 {[%clk 0:01:07]} 28. Ng2 {[%clk 0:00:23]}  Rxb3 {[%clk 0:01:07]} 29. Nxh4 {[%clk 0:00:21]}  g6 {[%clk 0:01:04]} 30. Kg2 {[%clk 0:00:19]}  Rxb2 {[%clk 0:01:04]} 31. Nf3 {[%clk 0:00:19]}  Ng4 {[%clk 0:01:01]} 32. Kg3 {[%clk 0:00:17]}  Nf6 {[%clk 0:00:55]} 33. Ne5 {[%clk 0:00:15]}  c5 {[%clk 0:00:56]} 34. dxc5 {[%clk 0:00:15]}  Rxc5 {[%clk 0:00:56]} 35. Rxc5 {[%clk 0:00:13]}  Ne4+ {[%clk 0:00:57]} 36. Kf4 {[%clk 0:00:14]}  Nxc5 {[%clk 0:00:58]} 37. Rd1 {[%clk 0:00:14]}  Rxf2+ {[%clk 0:00:57]} 38. Ke3 {[%clk 0:00:13]}  Ra2 {[%clk 0:00:49]} 39. Rxd5 {[%clk 0:00:13]}  Rxa3+ {[%clk 0:00:50]} 40. Ke2 {[%clk 0:00:11]}  Ne4 {[%clk 0:00:50]} 41. Rd7 {[%clk 0:00:11]}  Ng3+ {[%clk 0:00:40]} 42. Kd1 {[%clk 0:00:10]}  Re3 {[%clk 0:00:38]} 43. Nxf7 {[%clk 0:00:07]}  Nf5 {[%clk 0:00:38]} 44. Ng5 {[%clk 0:00:07]}  a4 {[%clk 0:00:35]} 45. Rd8+ {[%clk 0:00:07]}  Kg7 {[%clk 0:00:34]} 46. Ra8 {[%clk 0:00:08]}  Kf6 {[%clk 0:00:33]} 47. Nh7+ {[%clk 0:00:00]}  Ke5 {[%clk 0:00:33]} 0-1


[Site "https://www.chess.com"]